Cogmind - Beta 13 @@@ ROGUE MODE // 2024.04.19 @ 11:18:41 Player: Zaros426 Result: Destroyed by as-46240 with Assembled Heavy Rifle Performance ------------- Evolutions (0) 0 Regions Visited (3) 600 Robots Destroyed (23) 115 Value Destroyed (369) 369 Prototype IDs (2) 40 Alien Tech Used (0) 0 Bonus (0) 0 TOTAL SCORE: 1124 Bonus ------- None Cogmind --------- Core Integrity 0/250 Matter 267/300 Energy 155/160 System Corruption 4% Temperature Cool (0) Movement Rolling (95) Ox1 Location -10/Exiles Parts ------- > --- POWER (1) -------- Light Nuclear Core > --- PROPULSION (2) --- Wheel Wheel > --- UTILITY (2) ------ Large Storage Unit Structural Scanner > --- WEAPON (2) ------- Ion Cannon Katana (fused) > --- INVENTORY (15) --- Improved Signal Interpreter Improved Terrain Scanner Improved Terrain Scanner Light Armor Plating Light Armor Plating Light Armor Plating Hardened Medium Armor Plating Improved Trap Extractor (0/6) EM Pulse Cannon Heavy Particle Cannon Peak State ------------ > --- POWER ------------ Light Nuclear Core > --- PROPULSION ------- Aluminum Leg Aluminum Leg > --- UTILITY ---------- Improved Terrain Scanner Hardened Medium Armor Plating > --- WEAPON ----------- Ion Cannon Katana > --- INVENTORY -------- Large Storage Unit Structural Scanner Improved Signal Interpreter Light Armor Plating Light Armor Plating [Rating: 17] Favorites ----------- Power Ion Engine Engine Ion Engine Power Core Light Nuclear Core Propulsion Light Treads Treads Light Treads Leg Aluminum Leg Wheel Wheel Utility Improved Terrain Scanner Device Improved Terrain Scanner Storage Small Storage Unit Processor Terrain Scan Processor Protection Light Armor Plating Weapon Assault Rifle Energy Gun Small Laser Energy Cannon Ion Cannon Ballistic Gun Assault Rifle Slashing Weapon Katana Special Melee Weapon Datajack Build | -11 -10 -10 -10 ------- Run | Yrd Mat Min Exi Slots Evolved . | . . . . Power . | . . . . Propulsion . | . . . . Utility . | . . . . Weapon . | . . . . Parts Attached 45 | 5 10 30 . Power 4 | 1 1 2 . Engine 3 | 1 1 1 . Core 1 | . . 1 . Reactor . | . . . . Propulsion 10 | 2 1 7 . Treads 3 | 2 1 . . Leg 4 | . . 4 . Wheel 3 | . . 3 . Hover . | . . . . Flight . | . . . . Utility 23 | 1 5 17 . Device 9 | . 1 8 . Storage 3 | 1 1 1 . Processor 2 | . 1 1 . Hackware . | . . . . Protection 9 | . 2 7 . Artifact . | . . . . Weapon 8 | 1 3 4 . Energy Gun 2 | . . 2 . Energy Cannon 1 | . . 1 . Ballistic Gun 3 | 1 2 . . Ballistic Cannon . | . . . . Launcher . | . . . . Special Weapon . | . . . . Impact Weapon . | . . . . Slashing Weapon 1 | . . 1 . Piercing Weapon . | . . . . Special Melee Weapon 1 | . 1 . . Unidentified Prototypes . | . . . . Parts Lost 10 | . . 10 . Power 1 | . . 1 . Propulsion 4 | . . 4 . Utility 2 | . . 2 . Weapon 3 | . . 3 . Highest Loss Streak 5 | . . 5 . To Critical Strikes . | . . . . Average Slot Usage (%) 91 | . 83 94 100 Engine 7 | . 13 5 . Core 5 | . . 8 14 Treads 11 | . 27 3 . Leg 10 | . . 17 . Wheel 5 | . . 5 28 Device 12 | . 2 18 14 Storage 2 | . 4 . 14 Processor 4 | . 5 5 . Protection 3 | . 6 2 . Energy Gun 1 | . . 3 . Energy Cannon 3 | . . 4 14 Ballistic Gun 13 | . 17 12 . Slashing Weapon 3 | . . 4 14 Special Melee Weapon 1 | . 3 . . Naked Turns . | . . . . Heaviest Build 34 | 12 32 34 34 Greatest Support 40 | 40 40 40 20 Greatest Overweight (x) 4 | . . 4 1 Average Overweight (x) . | . . . 1 Largest Inventory Capacity 15 | 8 15 15 15 Average Capacity 6 | 7 6 5 15 Most Carried 10 | . 5 10 10 Average Carried 4 | . 2 4 10 Final Capacity 15 | 8 5 15 15 Final Carried 10 | . 5 10 10 Class Distribution -------------------- 55% | Scavenger-Mutant 44% | Mutant Dominant Class ---------------- Mutant | -10/Materials Scavenger-Mutant | -10/Mines Scavenger-Mutant | -10/Exiles Resources | -11 -10 -10 -10 ----------- Run | Yrd Mat Min Exi Matter Collected 975 | 189 212 574 . Remotely . | . . . . Salvage Created 494 | . 279 215 . Parts 48 | . 36 12 . Haulers Intercepted . | . . . . Recyclers Shooed 1 | . 1 . . Parts Field Recycled . | . . . . Retrieved Matter . | . . . . Parts Self-Destructed . | . . . . Prevented . | . . . . Kills | -11 -10 -10 -10 ------- Run | Yrd Mat Min Exi Combat Hostiles Destroyed 18 | . 9 9 . Melee 1 | . . 1 . Guns 17 | . 9 8 . Classes Destroyed 8 | . 6 2 . Worker 1 | . 1 . . Builder 3 | . 1 2 . Tunneler 1 | . 1 . . Watcher 3 | . 3 . . Swarmer 11 | . 8 3 . Grunt 3 | . 1 2 . Demolisher 1 | . . 1 . Assembled 3 | . . 3 . Best Kill Streak 3 | . 3 3 . Combat Bots Only 3 | . 3 3 . Max Kills in Single Turn 1 | . 1 1 . Gunslinging . | . . . . Exploded . | . . . . Melee 1 | . . 1 . Uniques/NPCs Destroyed . | . . . . Combat | -11 -10 -10 -10 -------- Run | Yrd Mat Min Exi Hostile Shots Fired 120 | . 51 68 1 Missed 28 | . 11 17 . Damage Taken 1503 | . 351 1132 20 Core 261 | . 51 190 20 Absorbed by Shields . | . . . . Core Remaining (%) 100 | 100 . . . Volleys Fired 100 | . 58 42 . Largest 2 | . 2 2 . Hottest 60 | . 40 60 . Shots Fired 134 | . 62 72 . Gun 132 | . 62 70 . Cannon 2 | . . 2 . Launcher . | . . . . Special . | . . . . Kinetic 113 | . 62 51 . Thermal 21 | . . 21 . Explosive . | . . . . Electromagnetic . | . . . . Robot Hit Streak 12 | . 12 12 . Robot Miss Streak 4 | . 4 4 . Penetration Max . | . . . . Secondary Targets 1 | . . 1 . Max Gunslinging Chain 1 | . . 1 . Shots Hit Robots 88 | . 40 48 . Core Hits 34 | . 17 17 . Critical Kills 1 | . 1 . . Critical Parts Destroyed 1 | . . 1 . Critical Strikes 2 | . 1 1 . Destroy 2 | . 1 1 . Melee Attacks 67 | . 6 51 10 Impact . | . . . . Slashing 61 | . . 51 10 Piercing . | . . . . Sneak Attacks 8 | . 6 2 . Combat Hostiles . | . . . . Follow-up Attacks . | . . . . Damage Inflicted 1163 | . 428 735 . Guns 932 | . 428 504 . Cannons . | . . . . Explosions . | . . . . Melee 231 | . . 231 . Ramming . | . . . . Kinetic 834 | . 428 406 . Thermal 98 | . . 98 . Explosive . | . . . . Electromagnetic . | . . . . Impact . | . . . . Slashing 231 | . . 231 . Piercing . | . . . . Highest Corruption 4 | . . 4 4 Average Corruption 4 | . . 4 4 Corruption Purged . | . . . . Corruption Blocked . | . . . . Effects 37 | . . 31 6 Message Errors 8 | . . 6 2 Matter Fused 8 | . . 7 1 Heat Flow Errors 4 | . . 4 . Energy Discharges 1 | . . 1 . Parts Fused 1 | . . 1 . Data Loss (minor) 9 | . . 7 2 Misfires 3 | . . 3 . Alerts 3 | . . 2 1 Overload Shots . | . . . . Overflow Damage 35 | . . 35 . Projectiles . | . . . . Explosions . | . . . . Melee 35 | . . 35 . Knockbacks . | . . . . Impact . | . . . . Kinetic . | . . . . Secondary . | . . . . Self-Inflicted Damage . | . . . . Shots . | . . . . Rammed . | . . . . Targets Rammed . | . . . . Kicked . | . . . . Crushed . | . . . . Highest Temperature 262 | . . 262 . Average Temperature 44 | . . 44 . Received Heat Transfer 171 | . 48 123 . Siege Activations . | . . . . Robots Corrupted . | . . . . Combat Hostiles . | . . . . Parts Fried 2 | . . 2 . Impact Corruptions . | . . . . Robots Melted . | . . . . Combat Hostiles . | . . . . Parts Melted . | . . . . Heat Transferred 225 | . . 225 . Parts Sabotaged . | . . . . Parts Stolen . | . . . . Parts Stripped . | . . . . Power Chain Reactions . | . . . . Alert | -11 -10 -10 -10 ------- Run | Yrd Mat Min Exi Peak Influence 218 | . 218 130 . Initial . | . . . . Average 42 | . 73 26 . Maximum Alert Level 1 | . 1 . . Low Security (%) 94 | 100 85 100 . Level 1 5 | . 14 . . Level 2 . | . . . . Level 3 . | . . . . Level 4 . | . . . . Level 5 . | . . . . High Security . | . . . . Max Security . | . . . . Squads Dispatched . | . . . . Investigation . | . . . . Extermination . | . . . . Reinforcement . | . . . . Assault . | . . . . Garrison . | . . . . Intercept . | . . . . Searches Triggered . | . . . . Construction Impeded . | . . . . Haulers Reinforced . | . . . . Active Scanning Responses . | . . . . Cargo Convoy Interrupts . | . . . . Stealth | -11 -10 -10 -10 --------- Run | Yrd Mat Min Exi Distress Signals . | . . . . Communications Jammed . | . . . . Distress Signals . | . . . . Times Spotted 41 | . 15 18 8 Peak Tracking Total 13 | . 4 3 13 Tactical Retreats 7 | . 1 5 1 Traps | -11 -10 -10 -10 ------- Run | Yrd Mat Min Exi Traps Triggered 2 | . 1 1 . Indirectly . | . . . . Trap Hack Attempts . | . . . . Triggered . | . . . . Disarmed . | . . . . Reprogrammed . | . . . . Reused . | . . . . Traps Extracted . | . . . . Installed . | . . . . Triggered . | . . . . Machines | -11 -10 -10 -10 ---------- Run | Yrd Mat Min Exi Machines Disabled 3 | . 1 1 1 Max in Single Turn 1 | . 1 1 1 Machines Repaired . | . . . . Machines Dismantled . | . . . . Machines Sabotaged . | . . . . Overloaded Fab Kills . | . . . . Hacking | -11 -10 -10 -10 --------- Run | Yrd Mat Min Exi Machines Accessed 5 | . 4 1 . Terminals 4 | . 4 . . Fabricators . | . . . . Repair Stations . | . . . . Recycling Units . | . . . . Scanalyzers . | . . . . Garrison Access . | . . . . Total Hacks 14 | . 13 1 . Successful 8 | . 7 1 . Failed 6 | . 6 . . Catastrophic . | . . . . Database Lockouts . | . . . . Manual . | . . . . Terminals 13 | . 13 . . Fabricators . | . . . . Repair Stations . | . . . . Recycling Units . | . . . . Scanalyzers . | . . . . Garrison Access . | . . . . Terminal Hacks 8 | . 7 1 . Record 5 | . 5 . . Prototype ID Bank 1 | . 1 . . Open Door 1 | . . 1 . Locate Traps 1 | . 1 . . Fabricator Hacks . | . . . . Repair Station Hacks . | . . . . Recycling Unit Hacks . | . . . . Scanalyzer . | . . . . Garrison Access Hacks . | . . . . Unauthorized Hacks . | . . . . Terminals . | . . . . Fabricators . | . . . . Repair Stations . | . . . . Recycling Units . | . . . . Scanalyzers . | . . . . Garrison Access . | . . . . Data Cores Recovered . | . . . . Used . | . . . . Hacking Detections 4 | . 4 . . Full Trace Events . | . . . . Feedback Events . | . . . . Feedback Blocked . | . . . . Robot Schematics Acquired . | . . . . Robots Built . | . . . . Authchips . | . . . . Time . | . . . . Total Robot Build Rating . | . . . . Part Schematics Acquired . | . . . . Parts Built . | . . . . Authchips . | . . . . Time . | . . . . Total Part Build Rating . | . . . . Parts Repaired . | . . . . Time . | . . . . Parts Recycled . | . . . . Recycled Matter . | . . . . Retrieved Matter . | . . . . Retrieved Components . | . . . . Parts Scanalyzed . | . . . . Part Schematics Acquired . | . . . . Parts Damaged . | . . . . Bothacking | -11 -10 -10 -10 ------------ Run | Yrd Mat Min Exi Used RIF Installer . | . . . . Robots Hacked 2 | . 2 . . Non-combat 2 | . 2 . . Combat . | . . . . Robot Hacks Applied 3 | . 3 . . parse_system 2 | . 2 . . no_distress 1 | . 1 . . Relay Couplers Released . | . . . . Fabnet Peak Effective % . | . . . . Robots Rewired . | . . . . Allies Hacked . | . . . . Hacks Repelled . | . . . . Allies | -11 -10 -10 -10 -------- Run | Yrd Mat Min Exi Total Allies . | . . . . Largest Group . | . . . . Highest-Rated Group . | . . . . Highest-Rated Ally . | . . . . Total Orders . | . . . . Ally Attacks . | . . . . Total Damage . | . . . . Kills . | . . . . Allies Corrupted . | . . . . Allies Melted . | . . . . Intel | -11 -10 -10 -10 ------- Run | Yrd Mat Min Exi Robot Analysis Total . | . . . . Derelict Logs Recovered 2 | . . 2 . Drone Launches . | . . . . Drone Recoveries . | . . . . Exploration | -11 -10 -10 -10 ------------- Run | Yrd Mat Min Exi Turns Passed 3672 | 70 1234 2117 251 Spaces Moved 2553 | 41 668 1604 240 Core 114 | 2 . 112 . Treads 864 | 39 668 157 . Legs 969 | . . 969 . Wheels 606 | . . 366 240 Hover . | . . . . Flight . | . . . . Fastest Speed 50 | 50 160 50 95 Average Speed 123 | 154 160 110 95 Slowest Speed 260 | 160 160 260 95 Overloaded Moves . | . . . . Propulsion Burnouts . | . . . . Robots Hopped . | . . . . Cave-ins Triggered . | . . . . Exploration Rate (%) 62 | 4 90 99 57 Regions Visited 3 Branch Regions 2 Pre-discovered Areas . | . . . . Known Exits Taken . | . . . . Unknown Exits Taken 3 | 1 1 1 . Scrap Searched 1 | . . 1 . Spaces Dug 41 | . . 39 2 Terrain Destroyed 41 | . . 39 2 Melee 41 | . . 39 2 Projectile . | . . . . AOE . | . . . . Terrain Rammed . | . . . . Walls Destroyed . | . . . . Machines Disabled . | . . . . Actions | -11 -10 -10 -10 --------- Run | Yrd Mat Min Exi Total 2846 | 45 766 1785 250 Wait 57 | . 12 45 . Move 2550 | 40 667 1603 240 Hop . | . . . . Pick Up 16 | . 8 8 . Fast Attach 23 | 5 6 12 . Attach 3 | . 1 2 . Detach 1 | . 1 . . Swap 19 | . 3 16 . Drop 10 | . 4 6 . Fire 100 | . 58 42 . Melee 67 | . 6 51 10 Ram . | . . . . Kick . | . . . . Crush . | . . . . Escape Stasis . | . . . . Rewire . | . . . . Trap . | . . . . Miscellaneous . | . . . . Route ------- -11/Scrapyard -10/Materials (discovered 4 exits: *Mat x2 / *Min x2) -10/Mines (discovered 4 exits: *Mat x2 / [*Exi] / [*Sub]) -10/Exiles (discovered 1 exit: [*Min]) History --------- Turn | Location | Event 13 | -11/Scrapyard | Discovered new exit (range 16) 71 | -11/Scrapyard | Entered Materials 170 | -10/Materials | Discovered new exit (range 9) 310 | -10/Materials | Build established: Mutant 353 | -10/Materials | Discovered new exit (range 14) 673 | -10/Materials | Discovered new exit (range 12) 867 | -10/Materials | Discovered new exit (range 16) 890 | -10/Materials | Identified exit to Materials 1305 | -10/Materials | Entered Mines 1326 | -10/Mines | Met a Derelict bent on vengeance 1896 | -10/Mines | Build established: Scavenger-Mutant 2030 | -10/Mines | Discovered new exit (range 4) 2104 | -10/Mines | Assembled infested the area 2176 | -10/Mines | Lost 5 parts (1p2n1u1w) 2420 | -10/Mines | Core integrity fell below 50% 2609 | -10/Mines | Discovered exit to Materials (range 11) 2690 | -10/Mines | Met a Derelict who couldn't figure out how to use a Trap Extractor 2772 | -10/Mines | Deemed a non-threat by the Exiles lab entrance 2772 | -10/Mines | Discovered new exit (range 5) 2975 | -10/Mines | Core integrity fell below 20% 3422 | -10/Mines | Entered Exiles 3436 | -10/Exiles | Discovered new exit (range 15) 3466 | -10/Exiles | Met 8R-AWN 3481 | -10/Exiles | Met EX-HEX 3530 | -10/Exiles | Met EX-DEC 3548 | -10/Exiles | Visited The Gauntlet 3646 | -10/Exiles | Attacked by the Exiles 3673 | -10/Exiles | Destroyed by as-46240 with Assembled Heavy Rifle Last Messages --------------- 8R-AWN: Oh you look... interesting. The Exiles will probably want to check you out. Keep your grabby things to yourself, though. I've got my sensors on you. EX-HEX: I assure you this isn't what it looks like. We're just trying to learn more about the Assembled. They're clearly not of 0b10 construction, and their tech is weird, seemingly copying a wide array of components of other bots with little pattern or logic. It's almost like the early stages of some sort of... evolution. I'd love to just go ask the Imprinter what all this is about, she must know something, but I doubt that would end well. The Zionites will tell you those Marauders at the gates are defenses set up by Warlord... Nope, the Imprinter put them there mostly to keep us out! Anyway, I've got to get back to poking and prodding these nasty little guys. Go see BIN. I can't imagine you'll want to stay in our boring little cave for long, and we could use some help with the project in the back. EX-DEC: Ah I see we have a visitor. One wrong move in here and I'll invert your atomic chain! J5-HVA: Are you here to join us? Sorry but we don't have any workstations ready for assignment just yet. We're probably going to have to pack up and move anyway, seeing as the Mines are expanding a bit too close for comfort. 03567_ System corrupted: Component data lost. GM-J5T: Can you believe Imprinter kicked the most prolific Tinkerers out of Zion? "Too smart and will end up getting everyone in trouble one day with crazy experiments"? Whatever! 03599_ =YJIYPT 4Z91MK WIH50L2FJ<8I7Y7IY=BU>EVBO6HQ 03645_ Testing Apparatus damaged. 03646_ EXILES: Hostile robot within lab perimeter. Defensive protocols time, folks! 03657_ System corrupted: Component data lost. Map ----- +----------------------------------------------------+ | ?????????????????????????????######## ###????## | | ???????????????????????????????####### ###?????? | | ???????????????????????????????????### ##??????? | | ????????????????????????????????????## ##??????? | | ????#########????#####?????#####????## ##??????? | | ???##########????###############????## ##??????? | | ???##"""""""#?##"""""""####""""""???## ##??????? | | ???##"" ""####"""""""####"""""""#### ##??????? | | ???##" "#"""""""" "####" """"#### ##??????? | | ???##"" ""#""#""" """####"" """#### ##??????? | | #####"" ""#""#"" ""####"" ""#### ######### | | #######"""###""###"""########"""###### ######### | | """" "" """"""" """""""" """""" """""""#" | | " """""" """"""" "#" | | """ " | | """" " | | "" " | | """ "" "" #" | | "" """ """""" " "" "" " """" """""#" | | #######"""########"""###" #"#"""########"""####### | | #####"" ""####"" ""#""a"" ""####"" ""##### | | ???##""" """####""" ""#" #""" ""####"" """##??? | | ???##" """ "####" """""" "#" " "####"""""""##??? | | ???##"""""""####"""""""#a"#"""""""####"" """"##??? | | ???##"""""""####"""""""#a"#"""""""####""""""?????? | | ???################"####"@##########??####???????? | | ????#######???? """"""""""##########??####???????? | | ???????????????????"""""""##?????????????????????? | | ???????????????????#########?????????????????????? | | ???????????????????#########?????????????????????? | | | | | | | | | | | | | | | | | | | | | | | | | | | | | | | | | | | | | | | | | +----------------------------------------------------+ Best States ------------- Heat Dissipation 25 Energy Generation 14 Energy Capacity 250 Matter Stores 300 Matter Capacity 300 Sight Range 16 Terrain Scan Range 16 Terrain Scan Density 85 Armor Coverage 375 Evasion (%) 55 Recoil Reduction 2 Item Schematics ----------------- None Robot Schematics ------------------ None Fabricated ------------ Nothing Alien Tech Used ----------------- None Achievements -------------- None Challenges ------------ None Game ------ Seed TripodPiercingGravjet Manual? 0 Play Time 00:26:04 Cumulative 59.3 hours Start 2024.04.19 @ 10:53:48 End 2024.04.19 @ 11:18:41 Sessions 1 Manual Loads 0 Difficulty Rogue Special Mode None Game No. 59 Rogue 59 Adventurer 0 Explorer 0 Win Type - Total 0 Types 0/0/0/0/0/0/0/0/0 Lore% 30 Gallery% 47 Achievement% 32 Wizard Run 0 Options --------- Layout 0 ASCII 0 Keyboard 0 Movement Mouse Keybinds 0 Fullscreen 2 Font 24/Smallcaps Map View 183x50 Zoom Use 0% Tactical HUD 1 Map Filters NONE Filters NONE Steam 0 RUN: ae992e35-5201-4520-9932-7126b5cdbcf1